fUST/lending_fUST_20250819
["ID","MTS","AMOUNT","RATE_DAILY","PERIOD"]
[380144257,1755573055888,-719.59,0.00020821,2]
[380144258,1755573055903,-480.0,0.00020821,2]
[380144259,1755573055917,-151.0,0.00020821,2]
[380144260,1755573055932,-334.185117,0.00020821,2]
[380144261,1755573055947,-1120.53,0.00020821,2]
[380144262,1755573055962,-334.185117,0.00020821,2]
[380144263,1755573055977,-480.0,0.00020821,2]
[380144264,1755573055992,-562.43,0.00020821,2]
[380144265,1755573056006,-151.0,0.00020821,2]
[380144266,1755573056021,-480.0,0.00020821,2]
[380144267,1755573056035,-151.0,0.00020821,2]
[380144268,1755573056051,-480.0,0.00020821,2]
[380144269,1755573056066,-152.57376085,0.00020821,2]
[380144270,1755573056081,-480.0,0.00020821,2]
[380144271,1755573056096,-480.0,0.00020821,2]
[380144272,1755573056111,-480.0,0.00020821,2]
[380144273,1755573056126,-359.906206,0.00020821,2]
[380144274,1755573056140,-359.906206,0.00020821,2]
[380144275,1755573056153,-480.0,0.00020821,2]
[380144276,1755573056168,-151.0,0.00020821,2]
[380144277,1755573056180,-480.0,0.00020821,2]
[380144278,1755573056190,-836.35,0.00020821,2]
[380144279,1755573056200,-480.0,0.00020821,2]
[380144280,1755573056210,-151.0,0.00020821,2]
[380144281,1755573056220,-167.480784,0.00020821,2]
[380144282,1755573056230,-151.0,0.00020821,2]
[380144283,1755573056239,-167.480784,0.00020821,2]
[380144284,1755573056250,-480.0,0.00020821,2]
[380144285,1755573056260,-480.0,0.00020821,2]
[380144286,1755573056269,-2003.27,0.00020821,2]
[380144287,1755573056279,-509.81,0.00020821,2]
[380144288,1755573056289,-151.0,0.00020821,2]
[380144289,1755573056300,-480.0,0.00020821,2]
[380144290,1755573056309,-853.16,0.00020821,2]
[380144291,1755573056319,-480.0,0.00020821,2]
[380144292,1755573056440,-480.0,0.00020821,2]
[380144293,1755573056498,-480.0,0.00020821,2]
[380144294,1755573056509,-1633.9,0.00020821,2]
[380144295,1755573056518,-965.84,0.00020821,2]
[380144296,1755573056527,-519.79,0.00020821,2]
[380144297,1755573056536,-1023.57,0.00020821,2]
[380144298,1755573056547,-885.580542,0.00020821,2]
[380144299,1755573056557,-885.580542,0.00020821,2]
[380144300,1755573056566,-151.0,0.00020821,2]
[380144301,1755573056575,-480.0,0.00020821,2]
[380144302,1755573056585,-480.0,0.00020821,2]
[380144303,1755573056594,-480.0,0.00020821,2]
[380144304,1755573056603,-151.0,0.00020821,2]
[380144305,1755573056612,-151.0,0.00020821,2]
[380144306,1755573056622,-335.358325,0.00020821,2]
[380144307,1755573056631,-151.0,0.00020821,2]
[380144308,1755573056640,-593.14,0.00020821,2]
[380144309,1755573056649,-335.358325,0.00020821,2]
[380144310,1755573056658,-151.0,0.00020821,2]
[380144311,1755573056667,-663.13,0.00020821,2]
[380144312,1755573056676,-151.0,0.00020821,2]
[380144313,1755573056685,-480.0,0.00020821,2]
[380144314,1755573056694,-480.0,0.00020821,2]
[380144315,1755573056703,-151.0,0.00020821,2]
[380144316,1755573056712,-210.452597,0.00020821,2]
[380144317,1755573056722,-480.0,0.00020821,2]
[380144318,1755573056731,-675.11,0.00020821,2]
[380144319,1755573056740,-169.826452,0.00020821,2]
[380144320,1755573056749,-480.0,0.00020821,2]
[380144321,1755573056758,-210.452597,0.00020821,2]
[380144322,1755573056767,-651.9,0.00020821,2]
[380144323,1755573056776,-151.0,0.00020821,2]
[380144324,1755573056786,-494.45,0.00020821,2]
[380144325,1755573056795,-960.93,0.00020821,2]
[380144326,1755573056804,-151.0,0.00020821,2]
[380144327,1755573056813,-955.61,0.00020821,2]
[380144328,1755573056823,-493.81495283,0.00020821,2]
[380144329,1755573056833,-2155.72,0.00020821,2]
[380144330,1755573056842,-927.52,0.00020821,2]
[380144331,1755573056851,-480.0,0.00020821,2]
[380144332,1755573056860,-1426.67,0.00020821,2]
[380144333,1755573056870,-151.0,0.00020821,2]
[380144334,1755573056879,-480.0,0.00020821,2]
[380144335,1755573056888,-151.0,0.00020821,2]
[380144336,1755573056898,-582.03,0.00020821,2]
[380144337,1755573056907,-976.54,0.00020821,2]
[380144338,1755573056916,-712.04,0.00020821,2]
[380144339,1755573056926,-653.79,0.00020821,2]
[380144340,1755573056935,-480.0,0.00020821,2]
[380144341,1755573056944,-1664.25,0.00020821,2]
[380144342,1755573056954,-532.395296,0.00020821,2]
[380144343,1755573056963,-5114.43,0.00020821,2]
[380144344,1755573056972,-532.395296,0.00020821,2]
[380144345,1755573056981,-1977.8,0.00020821,2]
[380144346,1755573056991,-151.0,0.00020821,2]
[380144347,1755573057000,-1069.37,0.00020821,2]
[380144348,1755573057009,-151.0,0.00020821,2]
[380144349,1755573057018,-1909.96,0.00020821,2]
[380144350,1755573057028,-3233.99,0.00020821,2]
[380144351,1755573057037,-436.9989511,0.00020821,2]
[380144352,1755573057046,-494.65,0.00020821,2]
[380144353,1755573057055,-480.0,0.00020821,2]
[380144354,1755573057066,-1626.15,0.00020821,2]
[380144355,1755573057076,-151.0,0.00020821,2]
[380144356,1755573057085,-579.30368795,0.00020821,2]
[380144357,1755573057094,-151.0,0.00020821,2]
[380144358,1755573057104,-882.27,0.00020821,2]
[380144359,1755573057113,-170.45534424,0.00020821,2]
[380144360,1755573057122,-540.86,0.00020821,2]
[380144361,1755573057132,-2411.02,0.00020821,2]
[380144362,1755573057141,-909.71,0.00020821,2]
[380144363,1755573057151,-480.0,0.00020821,2]
[380144364,1755573057160,-480.0,0.00020821,2]
[380144365,1755573057168,-179.888096,0.00020821,2]
[380144366,1755573057178,-480.0,0.00020821,2]
[380144367,1755573057187,-559.74,0.00020821,2]
[380144368,1755573057196,-480.0,0.00020821,2]
[380144369,1755573057206,-887.99,0.00020821,2]
[380144370,1755573057216,-458.534596,0.00020821,2]
[380144371,1755573057226,-458.534596,0.00020821,2]
[380144372,1755573057236,-480.0,0.00020821,2]
[380144373,1755573057245,-575.58,0.00020821,2]
[380144374,1755573057254,-1987.21,0.00020821,2]
[380144375,1755573057263,-151.0,0.00020821,2]
[380144376,1755573057273,-1059.201726,0.00020821,2]
[380144377,1755573057282,-455.408369,0.00020821,2]
[380144378,1755573057292,-455.408369,0.00020821,2]
[380144379,1755573057302,-1059.201726,0.00020821,2]
[380144380,1755573057313,-151.0,0.00020821,2]
[380144381,1755573057322,-455.408369,0.00020821,2]
[380144382,1755573057331,-458.534596,0.00020821,2]
[380144383,1755573057341,-6405.06,0.00020821,2]
[380144384,1755573057351,-458.534596,0.00020821,2]
[380144385,1755573057360,-455.408369,0.00020821,2]
[380144386,1755573057370,-151.0,0.00020821,2]
[380144387,1755573057384,-151.0,0.00020821,2]
[380144388,1755573057393,-860.52,0.00020821,2]
[380144389,1755573057403,-810.59,0.00020821,2]
[380144390,1755573057412,-728.69,0.00020821,2]
[380144391,1755573057421,-151.0,0.00020821,2]
[380144392,1755573057430,-151.0,0.00020821,2]
[380144393,1755573057440,-690.18,0.00020821,2]
[380144394,1755573057451,-1039.74,0.00020821,2]
[380144395,1755573057460,-480.0,0.00020821,2]
[380144396,1755573057469,-480.0,0.00020821,2]
[380144397,1755573057479,-2436.12,0.00020821,2]
[380144398,1755573057488,-151.0,0.00020821,2]
[380144399,1755573057498,-480.0,0.00020821,2]
[380144400,1755573057507,-941.31,0.00020821,2]
[380144401,1755573057517,-547.86,0.00020821,2]
[380144402,1755573057526,-151.0,0.00020821,2]
[380144403,1755573057535,-653.19,0.00020821,2]
[380144404,1755573057544,-2633.5,0.00020821,2]
[380144405,1755573057554,-712.5,0.00020821,2]
[380144406,1755573057563,-3869.68,0.00020821,2]
[380144407,1755573057572,-480.0,0.00020821,2]
[380144408,1755573057581,-480.0,0.00020821,2]
[380144409,1755573057590,-491.22,0.00020821,2]
[380144410,1755573057599,-151.0,0.00020821,2]
[380144411,1755573057609,-1131.68,0.00020821,2]
[380144412,1755573057618,-151.0,0.00020822,2]
[380144413,1755573057627,-336.23610955,0.00020822,2]
[380144414,1755573057637,-151.0,0.00020822,2]
[380144415,1755573057646,-461.0,0.00020822,2]
[380144416,1755573057655,-151.0,0.00020822,2]
[380144417,1755573057664,-277.83730038,0.00020822,2]
[380144418,1755573057673,-642.74965147,0.00020822,2]
[380144419,1755573057682,-5000.0,0.00020861,2]
[380144420,1755573057692,-420.0,0.00020899,2]
[380144421,1755573057701,-161.0,0.000209,5]
[380144422,1755573057710,-953.0,0.00020906,2]
[380144423,1755573057719,-293.8392635,0.00020959,2]
[380144424,1755573057729,-293.8943201,0.00020959,2]
[380144425,1755573057738,-590.1308799,0.00020959,2]
[380144426,1755573057747,-1161.575646,0.00020959,2]
[380144427,1755573057756,-278.49311682,0.00020995,2]
[380144428,1755573057766,-3000.0,0.00021,2]
[380144429,1755573057776,-160.0,0.00021,2]
[380144430,1755573057785,-3000.0,0.0002101,2]
[380144431,1755573057795,-3000.0,0.0002102,2]
[380144432,1755573057804,-3000.0,0.0002103,2]
[380144433,1755573057814,-168.0,0.00021037,2]
[380144434,1755573057823,-3000.0,0.0002104,2]
[380144435,1755573057832,-151.0,0.0002104,2]
[380144436,1755573057841,-151.0,0.0002104,2]
[380144437,1755573057851,-532.395296,0.0002104,2]
[380144438,1755573057861,-532.395296,0.0002104,2]
[380144439,1755573057870,-3000.0,0.0002105,2]
[380144440,1755573057880,-151.0,0.0002105,2]
[380144441,1755573057889,-151.0,0.0002105,2]
[380144442,1755573057898,-3000.0,0.0002106,2]
[380144443,1755573057908,-3000.0,0.0002107,2]
[380144444,1755573057916,-506.75523087,0.00021073,2]
[380144445,1755573057925,-500.0,0.00021073,2]
[380144446,1755573057934,-500.25206989,0.00021073,2]
[380144447,1755573057943,-569.77619581,0.00021073,2]
[380144448,1755573057952,-500.37432802,0.00021073,2]
[380144449,1755573057961,-500.0,0.00021073,2]
[380144450,1755573057970,-501.33458769,0.00021073,2]
[380144451,1755573057979,-501.16140526,0.00021073,2]
[380144452,1755573057988,-500.0,0.00021073,2]
[380144453,1755573057996,-258.6809446,0.00021073,2]
[380144454,1755573058006,-501.39022557,0.00021073,2]
[380144455,1755573058015,-501.26520079,0.00021073,2]
[380144456,1755573058024,-501.0378727,0.00021073,2]
[380144457,1755573058033,-221.7309803,0.00021073,2]
[380144458,1755573058042,-501.99223192,0.00021073,2]
[380144459,1755573058051,-500.0,0.00021073,2]
[380144460,1755573058060,-158.6785085,0.00021073,2]
[380144461,1755573058069,-160.26794997,0.00021073,2]
[380144462,1755573058078,-500.0,0.00021073,2]
[380144463,1755573058087,-500.0,0.00021073,2]
[380144464,1755573058096,-500.0,0.00021073,2]
[380144465,1755573058106,-158.68137963,0.00021073,2]
[380144466,1755573058115,-258.80967205,0.00021073,2]
[380144467,1755573058125,-185.50628992,0.00021073,2]
[380144468,1755573058134,-500.0,0.00021073,2]
[380144469,1755573058143,-500.0,0.00021073,2]
[380144470,1755573058152,-500.0,0.00021073,2]
[380144471,1755573058161,-500.0,0.00021073,2]
[380144472,1755573058170,-500.0,0.00021073,2]
[380144473,1755573058180,-500.0,0.00021073,2]
[380144474,1755573058189,-500.0,0.00021073,2]
[380144475,1755573058200,-500.0,0.00021073,2]
[380144476,1755573058211,-500.0,0.00021073,2]
[380144477,1755573058222,-500.0,0.00021073,2]
[380144478,1755573058232,-154.62673955,0.00021073,2]
[380144479,1755573058241,-501.56715421,0.00021073,2]
[380144480,1755573058252,-500.0,0.00021073,2]
[380144481,1755573058263,-500.0,0.00021073,2]
[380144482,1755573058273,-500.0,0.00021073,2]
[380144483,1755573058282,-500.31284062,0.00021073,2]
[380144484,1755573058294,-500.62627779,0.00021073,2]
[380144485,1755573058304,-500.0,0.00021073,2]
[380144486,1755573058314,-501.62085001,0.00021073,2]
[380144487,1755573058324,-500.47810497,0.00021073,2]
[380144488,1755573058334,-500.0,0.00021073,2]
[380144489,1755573058343,-501.21209222,0.00021073,2]
[380144490,1755573058353,-500.0,0.00021073,2]
[380144491,1755573058363,-500.0,0.00021073,2]
[380144492,1755573058378,-500.0,0.00021073,2]
[380144493,1755573058387,-500.0,0.00021073,2]
[380144494,1755573058396,-500.0,0.00021073,2]
[380144495,1755573058405,-500.0,0.00021073,2]
[380144496,1755573058415,-622.35043267,0.00021073,2]
[380144497,1755573058425,-500.0,0.00021073,2]
[380144498,1755573058434,-173.78036156,0.00021073,2]
[380144499,1755573058443,-162.499377,0.00021073,2]
[380144500,1755573058452,-196.1566654,0.00021073,2]
[380144501,1755573058462,-500.95299113,0.00021073,2]
[380144502,1755573058471,-500.0,0.00021073,2]
[380144503,1755573058481,-500.0,0.00021073,2]
[380144504,1755573058490,-500.0,0.00021073,2]
[380144505,1755573058499,-525.8493875,0.00021073,2]
[380144506,1755573058508,-242.0,0.00021076,2]
[380144507,1755573058518,-3000.0,0.0002108,2]
[380144508,1755573058527,-3000.0,0.0002109,2]
[380144509,1755573058537,-480.0,0.00021095,2]
[380144510,1755573058547,-480.0,0.00021095,2]
[380144511,1755573058556,-480.0,0.00021095,2]
[380144512,1755573058566,-480.0,0.00021095,2]
[380144513,1755573058575,-6716.15,0.00021095,2]
[380144514,1755573058584,-534.48,0.00021095,2]
[380144515,1755573058594,-1628.01,0.00021095,2]
[380144516,1755573058603,-480.0,0.00021095,2]
[380144517,1755573058613,-164.930769,0.00021095,2]
[380144518,1755573058622,-164.930769,0.00021095,2]
[380144519,1755573058631,-480.0,0.00021095,2]
[380144520,1755573058641,-517.72,0.00021095,2]
[380144521,1755573058650,-480.0,0.00021095,2]
[380144522,1755573058659,-480.0,0.00021095,2]
[380144523,1755573058668,-707.0,0.00021095,2]
[380144524,1755573058678,-689.35,0.00021095,2]
[380144525,1755573058687,-480.0,0.00021095,2]
[380144526,1755573058700,-480.0,0.00021095,2]
[380144527,1755573058711,-151.0,0.00021095,2]
[380144528,1755573058722,-480.0,0.00021095,2]
[380144529,1755573058732,-480.0,0.00021095,2]
[380144530,1755573058742,-151.0,0.00021095,2]
[380144531,1755573058752,-2793.31,0.00021095,2]
[380144532,1755573058763,-469.19614201,0.00021095,2]
[380144533,1755573058774,-480.0,0.00021095,2]
[380144534,1755573058784,-480.0,0.00021095,2]
[380144535,1755573058794,-719.59,0.00021095,2]
[380144536,1755573058803,-486.82875231,0.00021095,2]
[380144537,1755573058814,-151.0,0.00021095,2]
[380144538,1755573058824,-334.185117,0.00021095,2]
[380144539,1755573058836,-1120.53,0.00021095,2]
[380144540,1755573058846,-334.185117,0.00021095,2]
[380144541,1755573058856,-480.0,0.00021095,2]
[380144542,1755573058866,-562.43,0.00021095,2]
[380144543,1755573058877,-151.0,0.00021095,2]
[380144544,1755573058887,-480.0,0.00021095,2]
[380144545,1755573058898,-170.155106,0.00021095,2]
[380144546,1755573058906,-480.0,0.00021095,2]
[380144547,1755573058916,-480.0,0.00021095,2]
[380144548,1755573058925,-480.0,0.00021095,2]
[380144549,1755573058934,-480.0,0.00021095,2]
[380144550,1755573058943,-359.906206,0.00021095,2]
[380144551,1755573058952,-359.906206,0.00021095,2]
[380144552,1755573058961,-480.0,0.00021095,2]
[380144553,1755573058970,-151.0,0.00021095,2]
[380144554,1755573058979,-480.0,0.00021095,2]
[380144555,1755573058988,-836.35,0.00021095,2]
[380144556,1755573058997,-480.0,0.00021095,2]
[380144557,1755573059007,-167.480784,0.00021095,2]
[380144558,1755573059016,-151.0,0.00021095,2]
[380144559,1755573059120,-167.480784,0.00021095,2]
[380144560,1755573059129,-480.0,0.00021095,2]
[380144561,1755573059138,-480.0,0.00021095,2]
[380144562,1755573059147,-2003.27,0.00021095,2]
[380144563,1755573059158,-509.81,0.00021095,2]
[380144564,1755573059167,-151.0,0.00021095,2]
[380144565,1755573059176,-480.0,0.00021095,2]
[380144566,1755573059185,-853.16,0.00021095,2]
[380144567,1755573059194,-480.0,0.00021095,2]
[380144568,1755573059204,-480.0,0.00021095,2]
[380144569,1755573059213,-480.0,0.00021095,2]
[380144570,1755573059222,-1633.9,0.00021095,2]
[380144571,1755573059231,-965.84,0.00021095,2]
[380144572,1755573059240,-519.79,0.00021095,2]
[380144573,1755573059249,-1023.57,0.00021095,2]
[380144574,1755573059259,-885.580542,0.00021095,2]
[380144575,1755573059268,-885.580542,0.00021095,2]
[380144576,1755573059277,-480.0,0.00021095,2]
[380144577,1755573059286,-366.70504578,0.00021095,2]
[380144578,1755573059296,-480.0,0.00021095,2]
[380144579,1755573059305,-151.0,0.00021095,2]
[380144580,1755573059314,-335.358325,0.00021095,2]
[380144581,1755573059323,-593.14,0.00021095,2]
[380144582,1755573059333,-151.0,0.00021095,2]
[380144583,1755573059343,-335.358325,0.00021095,2]
[380144584,1755573059352,-151.0,0.00021095,2]
[380144585,1755573059361,-663.13,0.00021095,2]
[380144586,1755573059373,-151.0,0.00021095,2]
[380144587,1755573059383,-480.0,0.00021095,2]
[380144588,1755573059392,-480.0,0.00021095,2]
[380144589,1755573059401,-151.0,0.00021095,2]
[380144590,1755573059411,-210.452597,0.00021095,2]
[380144591,1755573059420,-480.0,0.00021095,2]
[380144592,1755573059429,-675.11,0.00021095,2]
[380144593,1755573059440,-480.0,0.00021095,2]
[380144594,1755573059451,-210.452597,0.00021095,2]
[380144595,1755573059460,-651.9,0.00021095,2]
[380144596,1755573059469,-152.010756,0.00021095,2]
[380144597,1755573059478,-494.45,0.00021095,2]
[380144598,1755573059488,-960.93,0.00021095,2]
[380144599,1755573059497,-151.0,0.00021095,2]
[380144600,1755573059507,-955.61,0.00021095,2]
[380144601,1755573059516,-2155.72,0.00021095,2]
[380144602,1755573059526,-927.52,0.00021095,2]
[380144603,1755573059537,-480.0,0.00021095,2]
[380144604,1755573059548,-1426.67,0.00021095,2]
[380144605,1755573059559,-151.0,0.00021095,2]
[380144606,1755573059568,-1500.0,0.00021095,14]
[380144607,1755573059578,-1500.0,0.00021095,14]
[380144608,1755573059588,-1500.0,0.00021095,14]
[380144609,1755573059599,-1500.0,0.00021095,14]
[380144610,1755573059608,-1500.0,0.00021095,14]
[380144611,1755573059618,-1500.0,0.00021095,14]
[380144612,1755573059627,-480.0,0.00021095,2]
[380144613,1755573059636,-1500.0,0.00021095,14]
[380144614,1755573059645,-1500.0,0.00021095,14]
[380144615,1755573059655,-1500.0,0.00021095,14]
[380144616,1755573059665,-1500.0,0.00021095,14]
[380144617,1755573059674,-1500.0,0.00021095,14]
[380144618,1755573059683,-151.0,0.00021095,2]
[380144619,1755573059692,-1500.0,0.00021095,14]
[380144620,1755573059707,-1500.0,0.00021095,14]
[380144621,1755573059716,-1500.0,0.00021095,14]
[380144622,1755573059725,-1500.0,0.00021095,14]
[380144623,1755573059734,-1500.0,0.00021095,14]
[380144624,1755573059743,-1500.0,0.00021095,14]
[380144625,1755573059752,-582.03,0.00021095,2]
[380144626,1755573059761,-1500.0,0.00021095,14]
[380144627,1755573059770,-1500.0,0.00021095,14]
[380144628,1755573059779,-1500.0,0.00021095,14]
[380144629,1755573059788,-1500.0,0.00021095,14]
[380144630,1755573059797,-1500.0,0.00021095,14]
[380144631,1755573059807,-1500.0,0.00021095,14]
[380144632,1755573059816,-976.54,0.00021095,2]
[380144633,1755573059825,-1500.0,0.00021095,14]
[380144634,1755573059834,-622.946484,0.00021095,14]
[380144635,1755573059844,-712.04,0.00021095,2]
[380144636,1755573059853,-653.79,0.00021095,2]
[380144637,1755573059862,-480.0,0.00021095,2]
[380144638,1755573059871,-1664.25,0.00021095,2]
[380144639,1755573059880,-532.395296,0.00021095,2]
[380144640,1755573059889,-5114.43,0.00021095,2]
[380144641,1755573059898,-1977.8,0.00021095,2]
[380144642,1755573059908,-532.395296,0.00021095,2]
[380144643,1755573059917,-1069.37,0.00021095,2]
[380144644,1755573059927,-151.0,0.00021095,2]
[380144645,1755573059936,-1909.96,0.00021095,2]
[380144646,1755573059948,-3233.99,0.00021095,2]
[380144647,1755573059958,-494.65,0.00021095,2]
[380144648,1755573059967,-282.23420419,0.00021095,2]
[380144649,1755573059976,-1626.15,0.00021095,2]
[380144650,1755573059985,-151.0,0.00021095,2]
[380144651,1755573059994,-882.27,0.00021095,2]
[380144652,1755573060005,-540.86,0.00021095,2]
[380144653,1755573060014,-2411.02,0.00021095,2]
[380144654,1755573060024,-909.71,0.00021095,2]
[380144655,1755573060034,-480.0,0.00021095,2]
[380144656,1755573060043,-480.0,0.00021095,2]
[380144657,1755573060052,-480.0,0.00021095,2]
[380144658,1755573060062,-559.74,0.00021095,2]
[380144659,1755573060071,-480.0,0.00021095,2]
[380144660,1755573060080,-887.99,0.00021095,2]
[380144661,1755573060091,-458.534596,0.00021095,2]
[380144662,1755573060100,-480.0,0.00021095,2]
[380144663,1755573060110,-575.58,0.00021095,2]
[380144664,1755573060119,-1987.21,0.00021095,2]
[380144665,1755573060128,-151.0,0.00021095,2]
[380144666,1755573060137,-1059.201726,0.00021095,2]
[380144667,1755573060147,-455.408369,0.00021095,2]
[380144668,1755573060156,-1059.201726,0.00021095,2]
[380144669,1755573060165,-6405.06,0.00021095,2]
[380144670,1755573060174,-458.534596,0.00021095,2]
[380144671,1755573060184,-455.408369,0.00021095,2]
[380144672,1755573060193,-151.0,0.00021095,2]
[380144673,1755573060203,-151.0,0.00021095,2]
[380144674,1755573060212,-860.52,0.00021095,2]
[380144675,1755573060221,-810.59,0.00021095,2]
[380144676,1755573060231,-728.69,0.00021095,2]
[380144677,1755573060240,-151.0,0.00021095,2]
[380144678,1755573060250,-690.18,0.00021095,2]
[380144679,1755573060259,-1039.74,0.00021095,2]
[380144680,1755573060269,-441.6914417,0.00021095,2]
[380144681,1755573060279,-480.0,0.00021095,2]
[380144682,1755573060288,-2436.12,0.00021095,2]
[380144683,1755573060298,-151.0,0.00021095,2]
[380144684,1755573060307,-480.0,0.00021095,2]
[380144685,1755573060317,-941.31,0.00021095,2]
[380144686,1755573060327,-547.86,0.00021095,2]
[380144687,1755573060336,-151.0,0.00021095,2]
[380144688,1755573060346,-653.19,0.00021095,2]
[380144689,1755573060356,-712.5,0.00021095,2]
[380144690,1755573060365,-2633.5,0.00021095,2]
[380144691,1755573060379,-190.74662859,0.00021095,2]
[380144692,1755573060403,-2057.110305,0.00021095,2]
[380144693,1755573061395,-1621.82306641,0.00021095,2]
[380144694,1755573061405,-480.0,0.00021095,2]
[380144695,1755573061417,-480.0,0.00021095,2]
[380144696,1755573061427,-491.22,0.00021095,2]
[380144697,1755573061436,-151.0,0.00021095,2]
[380144698,1755573061448,-1131.68,0.00021095,2]
[380144699,1755573061459,-152.94975458,0.00021096,2]
[380144700,1755573061469,-198.84867244,0.00021096,2]
[380144701,1755573061480,-461.0,0.00021096,2]
[380144702,1755573061491,-151.28036725,0.00021096,2]
[380144703,1755573061502,-2584.79482046,0.000211,2]
[380144704,1755573061710,-415.20517954,0.000211,2]
[380144705,1755573061720,-151.0,0.000211,2]
[380144706,1755573061732,-151.0,0.000211,2]
[380144707,1755573061743,-3000.0,0.0002111,2]
[380144708,1755573061752,-218.0,0.00021117,2]
[380144709,1755573061762,-3000.0,0.0002112,2]
[380144710,1755573061772,-115.35130691,0.00021124,2]
[380144711,1755573061848,159.0,0.00027086,120]
[380144712,1755573062107,-326.0,0.00019775,2]
[380144713,1755573062117,-54.36253887,0.00019775,2]
[380144714,1755573062267,-480.0,0.00019178,2]
[380144715,1755573062276,-547.74318373,0.00019178,2]
[380144716,1755573062286,-480.0,0.00019452,2]
[380144717,1755573062296,-480.0,0.00019726,2]
[380144718,1755573062305,-151.0,0.00019726,2]
[380144719,1755573062316,-271.63746113,0.00019775,2]
[380144720,1755573062325,-418.20986941,0.00019775,2]
[380144721,1755573062336,-480.0,0.0002,2]
[380144722,1755573062345,-151.0,0.0002,2]
[380144723,1755573062354,-151.0,0.00020273,2]
[380144724,1755573062364,-783.2,0.00020546,2]
[380144725,1755573062378,-783.2,0.0002082,2]
[380144726,1755573062390,-783.2,0.0002082,2]
[380144727,1755573062399,-783.2,0.0002082,2]
[380144728,1755573062410,-783.2,0.0002082,2]
[380144729,1755573062420,-783.2,0.0002082,2]
[380144730,1755573062430,-783.2,0.0002086,2]
[380144731,1755573062440,-783.2,0.0002086,2]
[380144732,1755573062456,-783.2,0.0002086,2]
[380144733,1755573062465,-52.64869309,0.00021124,2]
[380144734,1755573062475,-3000.0,0.0002113,2]
[380144735,1755573062484,-560.18484352,0.00021138,2]
[380144736,1755573062494,-2535.33249,0.0002114,2]
[380144737,1755573062584,-151.0,0.00019726,2]
[380144738,1755573062594,-104.75946843,0.0001992,2]
[380144739,1755573062605,-305.43853157,0.0001992,2]
[380144740,1755573062615,-151.0,0.00020547,2]
[380144741,1755573062624,-151.0,0.00020821,2]
[380144742,1755573062633,-783.2,0.0002086,2]
[380144743,1755573062643,-783.35313438,0.0002086,2]
[380144744,1755573062652,-151.0,0.00021073,2]
[380144745,1755573062661,-151.0,0.00021095,2]
[380144746,1755573062670,-464.66751,0.0002114,2]
[380144747,1755573062679,-3000.0,0.0002115,2]
[380144748,1755573062688,-3000.0,0.0002116,2]
[380144749,1755573062699,-3000.0,0.0002117,2]
[380144750,1755573062708,-2153.50304686,0.0002118,2]
[380144751,1755573062719,-846.49695314,0.0002118,2]
[380144752,1755573062728,-2965.38960775,0.0002119,2]
[380144753,1755573062742,-34.61039225,0.0002119,2]
[380144754,1755573062751,-3000.0,0.000212,2]
[380144755,1755573062761,-168.0,0.00021207,2]
[380144756,1755573062770,-3000.0,0.0002121,2]